[Event "Early-Titled-Tuesday-Blitz-June-18-2024"]
[Site "Chess.com"]
[Date "2024.06.18"]
[Round "4"]
[White "Lucky_Puncher"]
[Black "MatthewG-p4p"]
[Result "0-1"]
[WhiteElo "2605"]
[BlackElo "2860"]
[TimeControl "180+1"]
[EndTime "8:42:29 PDT"]
[Termination "MatthewG-p4p won on time"]

1. d4 {[%clk 0:03:00.9]} 1... Nf6 {[%clk 0:02:58.3]} 2. c4 {[%clk 0:02:55.4]}
2... c5 {[%clk 0:02:58.1]} 3. d5 {[%clk 0:02:54.9]} 3... e6 {[%clk 0:02:58.5]}
4. Nc3 {[%clk 0:02:54.8]} 4... exd5 {[%clk 0:02:59.1]} 5. cxd5 {[%clk
0:02:55.6]} 5... d6 {[%clk 0:02:59.9]} 6. e4 {[%clk 0:02:53.4]} 6... g6 {[%clk
0:02:59.6]} 7. h3 {[%clk 0:02:54]} 7... Bg7 {[%clk 0:02:59.8]} 8. Nf3 {[%clk
0:02:53.8]} 8... O-O {[%clk 0:03:00.5]} 9. Be3 {[%clk 0:02:54]} 9... Re8 {[%clk
0:02:19.5]} 10. Nd2 {[%clk 0:02:53.4]} 10... Nxe4 {[%clk 0:02:13.4]} 11. Ncxe4
{[%clk 0:02:53.3]} 11... f5 {[%clk 0:02:13.7]} 12. Nxd6 {[%clk 0:02:53.9]} 12...
Qxd6 {[%clk 0:02:12.2]} 13. Nc4 {[%clk 0:02:54.3]} 13... Qd8 {[%clk 0:02:07.8]}
14. Be2 {[%clk 0:02:43.1]} 14... b5 {[%clk 0:02:05.2]} 15. Nd2 {[%clk
0:02:41.4]} 15... c4 {[%clk 0:01:54.5]} 16. O-O {[%clk 0:02:31]} 16... Bb7
{[%clk 0:01:54.5]} 17. a4 {[%clk 0:02:13.4]} 17... Qxd5 {[%clk 0:01:04.4]} 18.
Bf3 {[%clk 0:02:11.4]} 18... Qd7 {[%clk 0:01:04.4]} 19. axb5 {[%clk 0:02:02.5]}
19... Qxb5 {[%clk 0:00:58.7]} 20. Bxb7 {[%clk 0:02:01.1]} 20... Qxb7 {[%clk
0:00:59.6]} 21. Nxc4 {[%clk 0:02:01]} 21... Qc6 {[%clk 0:00:32.3]} 22. Nd6
{[%clk 0:01:50.7]} 22... Re6 {[%clk 0:00:20.7]} 23. Bf4 {[%clk 0:01:20.8]} 23...
Nd7 {[%clk 0:00:17.1]} 24. Qb3 {[%clk 0:01:19.7]} 24... Nc5 {[%clk 0:00:16.7]}
25. Qc4 {[%clk 0:01:16.4]} 25... Bf8 {[%clk 0:00:15.9]} 26. Rfe1 {[%clk
0:00:54.5]} 26... Qd7 {[%clk 0:00:07.9]} 27. Rxe6 {[%clk 0:00:43.9]} 27... Qxe6
{[%clk 0:00:03.7]} 28. Qxc5 {[%clk 0:00:43]} 28... Rd8 {[%clk 0:00:04.5]} 29.
Rd1 {[%clk 0:00:41.1]} 29... g5 {[%clk 0:00:04.3]} 30. Be5 {[%clk 0:00:40.5]}
30... f4 {[%clk 0:00:02.4]} 31. h4 {[%clk 0:00:34.3]} 31... Re8 {[%clk
0:00:02.6]} 32. Rd5 {[%clk 0:00:31.8]} 32... Rd8 {[%clk 0:00:02.9]} 33. hxg5
{[%clk 0:00:32]} 33... Qg4 {[%clk 0:00:03]} 34. Qc4 {[%clk 0:00:28.4]} 34... Qe6
{[%clk 0:00:03.2]} 35. Bxf4 {[%clk 0:00:23.3]} 35... Bxd6 {[%clk 0:00:02.8]} 36.
Bxd6 {[%clk 0:00:07]} 36... Rxd6 {[%clk 0:00:03.5]} 37. Rc5 {[%clk 0:00:05.1]}
37... Qxc4 {[%clk 0:00:02.9]} 38. Rxc4 {[%clk 0:00:06]} 38... Rb6 {[%clk
0:00:03.8]} 39. Rc7 {[%clk 0:00:05.4]} 39... Rxb2 {[%clk 0:00:03.3]} 40. Rxa7
{[%clk 0:00:05.8]} 40... Rb5 {[%clk 0:00:03.9]} 41. f4 {[%clk 0:00:06]} 41...
Rb4 {[%clk 0:00:04.5]} 42. g3 {[%clk 0:00:05.9]} 42... Rb2 {[%clk 0:00:05.2]}
43. Re7 {[%clk 0:00:04.7]} 43... Rd2 {[%clk 0:00:05.4]} 44. Kf1 {[%clk
0:00:04.5]} 44... Rc2 {[%clk 0:00:05.4]} 45. Re2 {[%clk 0:00:04.9]} 45... Rc3
{[%clk 0:00:05.7]} 46. Kf2 {[%clk 0:00:05.3]} 46... Kf7 {[%clk 0:00:06.6]} 47.
Rd2 {[%clk 0:00:05.4]} 47... Rc1 {[%clk 0:00:07.5]} 48. Kf3 {[%clk 0:00:05.4]}
48... Kg6 {[%clk 0:00:06.6]} 49. Kg4 {[%clk 0:00:05.9]} 49... Rc7 {[%clk
0:00:05.7]} 50. Rd6+ {[%clk 0:00:06.4]} 50... Kg7 {[%clk 0:00:06.5]} 51. Kh5
{[%clk 0:00:06.8]} 51... Rc1 {[%clk 0:00:05.8]} 52. Rd7+ {[%clk 0:00:07]} 52...
Kg8 {[%clk 0:00:06.5]} 53. Kg4 {[%clk 0:00:07.1]} 53... Rc5 {[%clk 0:00:06.5]}
54. Kh5 {[%clk 0:00:05.6]} 54... Rc1 {[%clk 0:00:06.9]} 55. g6 {[%clk
0:00:06.1]} 55... Rh1+ {[%clk 0:00:05.7]} 56. Kg5 {[%clk 0:00:05.6]} 56... Rb1
{[%clk 0:00:04.4]} 57. gxh7+ {[%clk 0:00:04.7]} 57... Kh8 {[%clk 0:00:04.8]} 58.
g4 {[%clk 0:00:04.7]} 58... Rb5+ {[%clk 0:00:05.1]} 59. Kf6 {[%clk 0:00:02.4]}
59... Rf5+ {[%clk 0:00:05.5]} 60. Kg6 {[%clk 0:00:01.8]} 60... Rg5+ {[%clk
0:00:04.8]} 61. Kf6 {[%clk 0:00:02.3]} 61... Rg6+ {[%clk 0:00:04.6]} 0-1

[Event "Early-Titled-Tuesday-Blitz-June-18-2024"]
[Site "Chess.com"]
[Date "2024.06.18"]
[Round "4"]
[White "banjadvorovi"]
[Black "Iskusnyh"]
[Result "1/2-1/2"]
[WhiteElo "2433"]
[BlackElo "2656"]
[TimeControl "180+1"]
[EndTime "8:42:30 PDT"]
[Termination "Game drawn - insufficient material"]

1. e4 {[%clk 0:03:00.9]} 1... e6 {[%clk 0:02:33.7]} 2. d3 {[%clk 0:03:00.3]}
2... d5 {[%clk 0:02:33]} 3. Nd2 {[%clk 0:03:00.4]} 3... Nf6 {[%clk 0:02:32.1]}
4. Ngf3 {[%clk 0:03:00.4]} 4... Bc5 {[%clk 0:02:31.8]} 5. e5 {[%clk 0:02:58]}
5... Nfd7 {[%clk 0:02:31.5]} 6. d4 {[%clk 0:02:58.2]} 6... Bb6 {[%clk
0:02:31.5]} 7. Bd3 {[%clk 0:02:57.9]} 7... c5 {[%clk 0:02:31.5]} 8. c3 {[%clk
0:02:58.5]} 8... Nc6 {[%clk 0:02:31.8]} 9. dxc5 {[%clk 0:02:44.3]} 9... Bxc5
{[%clk 0:02:30.6]} 10. Nb3 {[%clk 0:02:42.1]} 10... Be7 {[%clk 0:02:18]} 11. Bf4
{[%clk 0:02:42]} 11... g5 {[%clk 0:02:17.4]} 12. Bg3 {[%clk 0:02:39.9]} 12... g4
{[%clk 0:02:17.7]} 13. Nfd4 {[%clk 0:02:36.7]} 13... Ndxe5 {[%clk 0:02:17.7]}
14. Nxc6 {[%clk 0:02:33.8]} 14... Nxc6 {[%clk 0:02:06]} 15. Qxg4 {[%clk
0:02:32.4]} 15... h5 {[%clk 0:01:51.5]} 16. Qe2 {[%clk 0:02:12.3]} 16... h4
{[%clk 0:01:50.3]} 17. Bf4 {[%clk 0:02:11.9]} 17... Bg5 {[%clk 0:01:49.8]} 18.
Qe3 {[%clk 0:01:57.1]} 18... Rg8 {[%clk 0:01:47.3]} 19. g3 {[%clk 0:01:48.9]}
19... Bxf4 {[%clk 0:01:44.4]} 20. Qxf4 {[%clk 0:01:48.4]} 20... Qg5 {[%clk
0:01:40.8]} 21. Qxg5 {[%clk 0:01:42.2]} 21... Rxg5 {[%clk 0:01:39.5]} 22. O-O-O
{[%clk 0:01:25.1]} 22... Ke7 {[%clk 0:01:38.7]} 23. Rhe1 {[%clk 0:01:20]} 23...
Bd7 {[%clk 0:01:31.5]} 24. Nd4 {[%clk 0:01:18.7]} 24... Nxd4 {[%clk 0:01:28.9]}
25. cxd4 {[%clk 0:01:18.9]} 25... Rh8 {[%clk 0:01:23.8]} 26. Kd2 {[%clk
0:00:59.5]} 26... hxg3 {[%clk 0:01:21.9]} 27. hxg3 {[%clk 0:01:00.4]} 27... Kd6
{[%clk 0:01:18.9]} 28. Rh1 {[%clk 0:00:57.6]} 28... Rgh5 {[%clk 0:01:16.4]} 29.
Rxh5 {[%clk 0:00:57.1]} 29... Rxh5 {[%clk 0:01:17.3]} 30. Ke3 {[%clk 0:00:54.4]}
30... f6 {[%clk 0:01:15.9]} 31. Be2 {[%clk 0:00:47.1]} 31... Rh8 {[%clk
0:01:11.5]} 32. Bf3 {[%clk 0:00:47]} 32... Bc6 {[%clk 0:01:10.5]} 33. Rh1 {[%clk
0:00:40.9]} 33... Rxh1 {[%clk 0:00:58.5]} 34. Bxh1 {[%clk 0:00:41.8]} 34... e5
{[%clk 0:00:58.9]} 35. Bg2 {[%clk 0:00:27.3]} 35... Bd7 {[%clk 0:00:54.4]} 36.
Bf1 {[%clk 0:00:15.7]} 36... a5 {[%clk 0:00:46.7]} 37. f3 {[%clk 0:00:15.3]}
37... Be8 {[%clk 0:00:42.7]} 38. Bd3 {[%clk 0:00:15.1]} 38... Bf7 {[%clk
0:00:42.1]} 39. Bc2 {[%clk 0:00:14.8]} 39... Bh5 {[%clk 0:00:38.2]} 40. Bd3
{[%clk 0:00:13.5]} 40... exd4+ {[%clk 0:00:37.3]} 41. Kf4 {[%clk 0:00:12.3]}
41... Ke6 {[%clk 0:00:31.8]} 42. g4 {[%clk 0:00:11.6]} 42... Be8 {[%clk
0:00:30.7]} 43. Bf5+ {[%clk 0:00:10]} 43... Kd6 {[%clk 0:00:30.9]} 44. g5 {[%clk
0:00:10.3]} 44... fxg5+ {[%clk 0:00:30.3]} 45. Kxg5 {[%clk 0:00:11.2]} 45... Bb5
{[%clk 0:00:30.2]} 46. Kf4 {[%clk 0:00:11.2]} 46... d3 {[%clk 0:00:28.9]} 47.
Ke3 {[%clk 0:00:11.5]} 47... d4+ {[%clk 0:00:26.2]} 48. Kd2 {[%clk 0:00:10.5]}
48... Ke5 {[%clk 0:00:25.3]} 49. Bxd3 {[%clk 0:00:10.7]} 49... Bc6 {[%clk
0:00:25.9]} 50. Be2 {[%clk 0:00:08]} 50... Kf4 {[%clk 0:00:26]} 51. Kd3 {[%clk
0:00:08.4]} 51... Bb5+ {[%clk 0:00:26]} 52. Kd2 {[%clk 0:00:08.9]} 52... Bd7
{[%clk 0:00:18.4]} 53. Kd3 {[%clk 0:00:08.9]} 53... Ke5 {[%clk 0:00:18]} 54. f4+
{[%clk 0:00:09.1]} 54... Kd5 {[%clk 0:00:16.7]} 55. Bf3+ {[%clk 0:00:09.3]}
55... Kc5 {[%clk 0:00:17.1]} 56. Bxb7 {[%clk 0:00:09.9]} 56... Bf5+ {[%clk
0:00:17.7]} 57. Kd2 {[%clk 0:00:10.5]} 57... Be6 {[%clk 0:00:16]} 58. a3 {[%clk
0:00:10.6]} 58... Bf5 {[%clk 0:00:15.8]} 59. Bf3 {[%clk 0:00:10.6]} 59... Kc4
{[%clk 0:00:14.9]} 60. Bd1 {[%clk 0:00:11.2]} 60... d3 {[%clk 0:00:14.2]} 61.
b3+ {[%clk 0:00:10.5]} 61... Kd4 {[%clk 0:00:14.2]} 62. b4 {[%clk 0:00:09.2]}
62... axb4 {[%clk 0:00:14.6]} 63. axb4 {[%clk 0:00:10.1]} 63... Kc4 {[%clk
0:00:15.1]} 64. Bh5 {[%clk 0:00:07.6]} 64... Kxb4 {[%clk 0:00:14.6]} 65. Bf7
{[%clk 0:00:08.3]} 65... Kc5 {[%clk 0:00:14.2]} 66. Be6 {[%clk 0:00:08.4]} 66...
Bxe6 {[%clk 0:00:09.9]} 67. Kxd3 {[%clk 0:00:08.6]} 67... Bd7 {[%clk 0:00:07.6]}
68. f5 {[%clk 0:00:09.5]} 68... Bxf5+ {[%clk 0:00:07.7]} 1/2-1/2

[Event "Early-Titled-Tuesday-Blitz-June-18-2024"]
[Site "Chess.com"]
[Date "2024.06.18"]
[Round "4"]
[White "Alphafischer2019"]
[Black "DenLaz"]
[Result "0-1"]
[WhiteElo "2636"]
[BlackElo "3088"]
[TimeControl "180+1"]
[EndTime "8:42:31 PDT"]
[Termination "DenLaz won by resignation"]

1. Nf3 {[%clk 0:02:58.9]} 1... f5 {[%clk 0:02:59.8]} 2. g3 {[%clk 0:02:55.4]}
2... Nf6 {[%clk 0:03:00.2]} 3. Bg2 {[%clk 0:02:55.9]} 3... g6 {[%clk 0:03:00.9]}
4. b3 {[%clk 0:02:53]} 4... Bg7 {[%clk 0:03:01.4]} 5. Bb2 {[%clk 0:02:53.6]}
5... O-O {[%clk 0:03:02.1]} 6. O-O {[%clk 0:02:52.9]} 6... d6 {[%clk 0:03:02.7]}
7. c4 {[%clk 0:02:52.9]} 7... e5 {[%clk 0:03:02.6]} 8. d3 {[%clk 0:02:53.6]}
8... Nc6 {[%clk 0:03:02.4]} 9. Nc3 {[%clk 0:02:49.5]} 9... h6 {[%clk 0:03:02.6]}
10. a3 {[%clk 0:02:45.8]} 10... a5 {[%clk 0:03:02.4]} 11. Nd2 {[%clk 0:02:37.6]}
11... g5 {[%clk 0:03:01.7]} 12. e3 {[%clk 0:02:35.7]} 12... Qe8 {[%clk
0:03:00.3]} 13. Rc1 {[%clk 0:02:26.2]} 13... Nd8 {[%clk 0:02:58.9]} 14. b4
{[%clk 0:02:24]} 14... axb4 {[%clk 0:02:57.2]} 15. axb4 {[%clk 0:02:24.9]} 15...
Ne6 {[%clk 0:02:57.7]} 16. Nd5 {[%clk 0:02:20.9]} 16... Qf7 {[%clk 0:02:45]} 17.
Qc2 {[%clk 0:02:13.8]} 17... Nd7 {[%clk 0:02:27.4]} 18. b5 {[%clk 0:02:02.7]}
18... Ndc5 {[%clk 0:02:21.6]} 19. Rce1 {[%clk 0:01:14.3]} 19... Ra2 {[%clk
0:02:18.3]} 20. Qb1 {[%clk 0:01:13.2]} 20... Rxb2 {[%clk 0:02:18.2]} 21. Qxb2
{[%clk 0:01:13.4]} 21... Nxd3 {[%clk 0:02:18.8]} 22. Qc2 {[%clk 0:01:10]} 22...
Nxe1 {[%clk 0:02:19.2]} 23. Rxe1 {[%clk 0:01:10.9]} 23... h5 {[%clk 0:02:13]}
24. Nb3 {[%clk 0:01:04.4]} 24... e4 {[%clk 0:02:09.3]} 25. Bf1 {[%clk
0:00:53.5]} 25... h4 {[%clk 0:02:06.9]} 26. c5 {[%clk 0:00:53.1]} 26... hxg3
{[%clk 0:01:58.9]} 27. hxg3 {[%clk 0:00:52]} 27... Be5 {[%clk 0:01:25.9]} 28.
Bc4 {[%clk 0:00:48.4]} 28... Kg7 {[%clk 0:01:20.9]} 29. Kg2 {[%clk 0:00:40.2]}
29... Rh8 {[%clk 0:01:04.6]} 30. Rh1 {[%clk 0:00:36.6]} 30... Rxh1 {[%clk
0:01:03.5]} 31. Kxh1 {[%clk 0:00:37.5]} 31... Nxc5 {[%clk 0:01:01.4]} 32. Nxc5
{[%clk 0:00:35.3]} 32... dxc5 {[%clk 0:01:02.3]} 33. Nf4 {[%clk 0:00:21.5]}
33... Qe8 {[%clk 0:01:00.1]} 34. Ne2 {[%clk 0:00:18.4]} 34... b6 {[%clk
0:00:58.3]} 35. Nc3 {[%clk 0:00:15.6]} 35... Bd7 {[%clk 0:00:56.2]} 36. Kg2
{[%clk 0:00:13.8]} 36... Be6 {[%clk 0:00:36.8]} 37. Nd5 {[%clk 0:00:10]} 37...
Bxd5 {[%clk 0:00:32.9]} 38. Bxd5 {[%clk 0:00:10.9]} 38... Qxb5 {[%clk
0:00:33.6]} 39. Bc4 {[%clk 0:00:08.3]} 39... Qd7 {[%clk 0:00:31.3]} 40. Qe2
{[%clk 0:00:07.6]} 40... g4 {[%clk 0:00:29.5]} 41. Qa2 {[%clk 0:00:05.5]} 41...
Kf6 {[%clk 0:00:23.8]} 42. Qa8 {[%clk 0:00:04.9]} 42... Ke7 {[%clk 0:00:17.3]}
43. Qg8 {[%clk 0:00:04.2]} 43... c6 {[%clk 0:00:12.7]} 44. Qf7+ {[%clk
0:00:04.3]} 44... Kd6 {[%clk 0:00:13.1]} 45. Qg6+ {[%clk 0:00:03.2]} 45... Kc7
{[%clk 0:00:12.4]} 46. Be6 {[%clk 0:00:03.8]} 46... Qe7 {[%clk 0:00:06]} 47.
Qxf5 {[%clk 0:00:03.7]} 47... Kd6 {[%clk 0:00:05.4]} 48. Ba2 {[%clk 0:00:02.9]}
48... b5 {[%clk 0:00:05.9]} 49. Qg6+ {[%clk 0:00:03.1]} 49... Kc7 {[%clk
0:00:06.1]} 50. Qxe4 {[%clk 0:00:03.9]} 50... c4 {[%clk 0:00:06.7]} 51. Qxg4
{[%clk 0:00:04.4]} 51... Qd6 {[%clk 0:00:04.5]} 52. Qe4 {[%clk 0:00:05]} 52...
Qd5 {[%clk 0:00:05]} 53. Kf3 {[%clk 0:00:04.6]} 53... Kd6 {[%clk 0:00:03.5]} 54.
g4 {[%clk 0:00:04.9]} 54... Qd1+ {[%clk 0:00:03.8]} 55. Kg2 {[%clk 0:00:04.8]}
55... c3 {[%clk 0:00:03.7]} 56. Bb1 {[%clk 0:00:03.5]} 56... b4 {[%clk
0:00:02.9]} 57. Bc2 {[%clk 0:00:04.1]} 57... Qd5 {[%clk 0:00:03]} 58. Kf3 {[%clk
0:00:04.8]} 58... c5 {[%clk 0:00:01.9]} 59. g5 {[%clk 0:00:04.8]} 59... c4
{[%clk 0:00:02.3]} 60. g6 {[%clk 0:00:04.7]} 60... b3 {[%clk 0:00:02.9]} 61. Bb1
{[%clk 0:00:05.2]} 61... c2 {[%clk 0:00:03.2]} 62. Bxc2 {[%clk 0:00:04.8]} 62...
bxc2 {[%clk 0:00:04.1]} 63. Qxd5+ {[%clk 0:00:03.9]} 63... Kxd5 {[%clk 0:00:05]}
64. g7 {[%clk 0:00:04.8]} 64... Bxg7 {[%clk 0:00:04.5]} 65. e4+ {[%clk
0:00:05.7]} 65... Kd4 {[%clk 0:00:04.8]} 66. e5 {[%clk 0:00:06.6]} 66... c1=Q
{[%clk 0:00:05.7]} 67. e6 {[%clk 0:00:07.3]} 67... Qc2 {[%clk 0:00:06.3]} 0-1

[Event "Early-Titled-Tuesday-Blitz-June-18-2024"]
[Site "Chess.com"]
[Date "2024.06.18"]
[Round "4"]
[White "Brown_Bear_MGL"]
[Black "NM_Antelacus"]
[Result "1-0"]
[WhiteElo "2503"]
[BlackElo "2301"]
[TimeControl "180+1"]
[EndTime "8:42:31 PDT"]
[Termination "Brown_Bear_MGL won on time"]

1. b3 {[%clk 0:03:00.9]} 1... e5 {[%clk 0:02:59]} 2. Bb2 {[%clk 0:03:00.6]} 2...
Nc6 {[%clk 0:02:59.3]} 3. c4 {[%clk 0:02:59.8]} 3... Nf6 {[%clk 0:02:51.8]} 4.
e3 {[%clk 0:02:59.3]} 4... d5 {[%clk 0:02:49.3]} 5. cxd5 {[%clk 0:02:59.3]} 5...
Nxd5 {[%clk 0:02:49]} 6. a3 {[%clk 0:02:59.4]} 6... Bd6 {[%clk 0:02:43.3]} 7. d3
{[%clk 0:02:48.1]} 7... O-O {[%clk 0:02:41.8]} 8. Nf3 {[%clk 0:02:46.4]} 8...
Bg4 {[%clk 0:02:38.4]} 9. Nbd2 {[%clk 0:02:45.7]} 9... Re8 {[%clk 0:02:27.2]}
10. Qc2 {[%clk 0:02:45.4]} 10... Qd7 {[%clk 0:02:24.6]} 11. Be2 {[%clk
0:02:38.3]} 11... Rad8 {[%clk 0:02:22.4]} 12. O-O {[%clk 0:02:36.2]} 12... h6
{[%clk 0:02:19.7]} 13. b4 {[%clk 0:02:31.4]} 13... a6 {[%clk 0:02:18.8]} 14. Nc4
{[%clk 0:02:22.6]} 14... Qe6 {[%clk 0:01:59.6]} 15. Rfd1 {[%clk 0:02:13.5]}
15... Bh5 {[%clk 0:01:58]} 16. Rac1 {[%clk 0:02:07.6]} 16... Bg6 {[%clk
0:01:57.1]} 17. Nxd6 {[%clk 0:02:06.8]} 17... cxd6 {[%clk 0:01:56.4]} 18. Qa4
{[%clk 0:01:53.6]} 18... Nb6 {[%clk 0:01:50.2]} 19. Qc2 {[%clk 0:01:49.1]} 19...
Rc8 {[%clk 0:01:48.9]} 20. Qd2 {[%clk 0:01:30.6]} 20... Ne7 {[%clk 0:01:38]} 21.
Rxc8 {[%clk 0:01:22.9]} 21... Rxc8 {[%clk 0:01:37.1]} 22. Rc1 {[%clk 0:01:23.5]}
22... Rxc1+ {[%clk 0:01:28.4]} 23. Qxc1 {[%clk 0:01:24.4]} 23... Qc8 {[%clk
0:01:27.5]} 24. Qxc8+ {[%clk 0:01:22.1]} 24... Nexc8 {[%clk 0:01:27.1]} 25. Kf1
{[%clk 0:01:03.9]} 25... Na4 {[%clk 0:01:24.8]} 26. Ba1 {[%clk 0:01:03.8]} 26...
f6 {[%clk 0:01:24.5]} 27. Ke1 {[%clk 0:01:01.3]} 27... d5 {[%clk 0:01:22.1]} 28.
Kd2 {[%clk 0:00:58.8]} 28... Kf7 {[%clk 0:01:20.8]} 29. Bd1 {[%clk 0:00:58.5]}
29... Nab6 {[%clk 0:01:15.2]} 30. Bb3 {[%clk 0:00:58.2]} 30... Ke7 {[%clk
0:01:12.3]} 31. Nh4 {[%clk 0:00:53.3]} 31... Bh7 {[%clk 0:01:11.6]} 32. f4
{[%clk 0:00:48.9]} 32... g5 {[%clk 0:01:07.8]} 33. Nf3 {[%clk 0:00:43]} 33...
gxf4 {[%clk 0:00:55.8]} 34. exf4 {[%clk 0:00:43.1]} 34... exf4 {[%clk
0:00:54.4]} 35. Bd4 {[%clk 0:00:42.7]} 35... Bg8 {[%clk 0:00:46.6]} 36. Nh4
{[%clk 0:00:41.1]} 36... Bh7 {[%clk 0:00:40.7]} 37. Ke2 {[%clk 0:00:39.2]} 37...
Kd6 {[%clk 0:00:38.1]} 38. Bxf6 {[%clk 0:00:37.8]} 38... Nd7 {[%clk 0:00:37.3]}
39. Bg7 {[%clk 0:00:35.4]} 39... h5 {[%clk 0:00:36.8]} 40. Nf3 {[%clk
0:00:34.2]} 40... Ne7 {[%clk 0:00:34.3]} 41. Bh6 {[%clk 0:00:29.7]} 41... Ne5
{[%clk 0:00:28]} 42. Bxf4 {[%clk 0:00:27.9]} 42... Ng6 {[%clk 0:00:28]} 43. Bg3
{[%clk 0:00:24.9]} 43... h4 {[%clk 0:00:27.4]} 44. Bxe5+ {[%clk 0:00:17.3]}
44... Nxe5 {[%clk 0:00:26.5]} 45. Nxe5 {[%clk 0:00:14.8]} 45... Kxe5 {[%clk
0:00:26.7]} 46. Ke3 {[%clk 0:00:15.1]} 46... d4+ {[%clk 0:00:24.4]} 47. Ke2
{[%clk 0:00:15.2]} 47... b6 {[%clk 0:00:23.4]} 48. Bc4 {[%clk 0:00:14.2]} 48...
a5 {[%clk 0:00:23.1]} 49. bxa5 {[%clk 0:00:14.2]} 49... bxa5 {[%clk 0:00:23.4]}
50. Kf3 {[%clk 0:00:13.9]} 50... Bf5 {[%clk 0:00:23.2]} 51. Bb5 {[%clk
0:00:12.3]} 51... Be6 {[%clk 0:00:20.5]} 52. g4 {[%clk 0:00:06.6]} 52... hxg3
{[%clk 0:00:20.1]} 53. hxg3 {[%clk 0:00:06.7]} 53... Kd6 {[%clk 0:00:11.5]} 54.
Ke4 {[%clk 0:00:04.3]} 54... Kc5 {[%clk 0:00:11.4]} 55. Be8 {[%clk 0:00:02.7]}
55... Bg4 {[%clk 0:00:10.2]} 56. Kf4 {[%clk 0:00:02.5]} 56... Be2 {[%clk
0:00:09.5]} 57. Bg6 {[%clk 0:00:03.1]} 57... Kb5 {[%clk 0:00:08.9]} 58. Be8+
{[%clk 0:00:03.3]} 58... Kc5 {[%clk 0:00:08.2]} 59. Bg6 {[%clk 0:00:03.5]} 59...
Kb5 {[%clk 0:00:08.4]} 60. Ke5 {[%clk 0:00:04]} 60... Ka4 {[%clk 0:00:06]} 61.
Kxd4 {[%clk 0:00:04.2]} 61... Kxa3 {[%clk 0:00:06.4]} 62. Bf7 {[%clk 0:00:04.5]}
62... Bg4 {[%clk 0:00:03.7]} 63. Kc3 {[%clk 0:00:03.8]} 63... a4 {[%clk
0:00:03.1]} 64. Bc4 {[%clk 0:00:03.9]} 64... Bf3 {[%clk 0:00:01.9]} 65. d4
{[%clk 0:00:04]} 1-0

[Event "Early-Titled-Tuesday-Blitz-June-18-2024"]
[Site "Chess.com"]
[Date "2024.06.18"]
[Round "4"]
[White "cthake"]
[Black "ChEsper99"]
[Result "0-1"]
[WhiteElo "1812"]
[BlackElo "2263"]
[TimeControl "180+1"]
[EndTime "8:42:33 PDT"]
[Termination "ChEsper99 won on time"]

1. e4 {[%clk 0:03:00.9]} 1... e6 {[%clk 0:03:00.2]} 2. d4 {[%clk 0:02:59.3]}
2... d5 {[%clk 0:03:00.5]} 3. Nc3 {[%clk 0:02:58.1]} 3... Nf6 {[%clk 0:02:56.7]}
4. exd5 {[%clk 0:02:56.6]} 4... exd5 {[%clk 0:02:55.3]} 5. Bd3 {[%clk
0:02:55.7]} 5... Bd6 {[%clk 0:02:51.8]} 6. Nf3 {[%clk 0:02:55.3]} 6... Bg4
{[%clk 0:02:50.4]} 7. O-O {[%clk 0:02:54.6]} 7... O-O {[%clk 0:02:49.2]} 8. Bg5
{[%clk 0:02:53.8]} 8... Nbd7 {[%clk 0:02:47.9]} 9. Re1 {[%clk 0:02:53.3]} 9...
c6 {[%clk 0:02:44.4]} 10. h3 {[%clk 0:02:53.1]} 10... Bh5 {[%clk 0:02:40.5]} 11.
Be2 {[%clk 0:02:39.8]} 11... h6 {[%clk 0:02:35.3]} 12. Be3 {[%clk 0:02:30.6]}
12... Re8 {[%clk 0:02:31.3]} 13. Qd2 {[%clk 0:02:27.6]} 13... Qc7 {[%clk
0:02:22]} 14. a3 {[%clk 0:02:20.9]} 14... Re7 {[%clk 0:02:16.4]} 15. Rad1 {[%clk
0:02:04]} 15... Rae8 {[%clk 0:02:16.8]} 16. b4 {[%clk 0:02:00.1]} 16... Bg6
{[%clk 0:02:13.5]} 17. Bd3 {[%clk 0:01:58]} 17... Ne4 {[%clk 0:02:10.6]} 18.
Bxe4 {[%clk 0:01:50.5]} 18... Bxe4 {[%clk 0:02:10.7]} 19. Qc1 {[%clk 0:01:35.1]}
19... Bxf3 {[%clk 0:02:08.7]} 20. gxf3 {[%clk 0:01:35.3]} 20... Re6 {[%clk
0:02:05.3]} 21. Ne2 {[%clk 0:01:34.6]} 21... Rg6+ {[%clk 0:02:05]} 22. Kf1
{[%clk 0:01:31.8]} 22... Qd8 {[%clk 0:01:57.4]} 23. f4 {[%clk 0:01:21.7]} 23...
Qh4 {[%clk 0:01:54.9]} 24. Ng1 {[%clk 0:01:18.8]} 24... f5 {[%clk 0:01:43.5]}
25. Qd2 {[%clk 0:00:56.2]} 25... Nf6 {[%clk 0:01:22.1]} 26. Qe2 {[%clk
0:00:55.7]} 26... Bxf4 {[%clk 0:01:03.2]} 27. Qf3 {[%clk 0:00:55.5]} 27... Bxe3
{[%clk 0:01:02.6]} 28. Rxe3 {[%clk 0:00:55.2]} 28... Rxe3 {[%clk 0:01:00.6]} 29.
Qxe3 {[%clk 0:00:55.4]} 29... Ne4 {[%clk 0:00:56.8]} 30. c4 {[%clk 0:00:47.7]}
30... f4 {[%clk 0:00:32.8]} 31. Qf3 {[%clk 0:00:44.4]} 31... Ng5 {[%clk
0:00:30]} 32. Qg4 {[%clk 0:00:36.6]} 32... Qxg4 {[%clk 0:00:30.2]} 33. hxg4
{[%clk 0:00:36.4]} 33... dxc4 {[%clk 0:00:28.3]} 34. d5 {[%clk 0:00:35.2]} 34...
Rd6 {[%clk 0:00:25.4]} 35. Rd4 {[%clk 0:00:26.4]} 35... Rxd5 {[%clk 0:00:17.2]}
36. Rxf4 {[%clk 0:00:24.3]} 36... b5 {[%clk 0:00:15.2]} 37. Nf3 {[%clk
0:00:21.4]} 37... c3 {[%clk 0:00:14]} 38. Ne1 {[%clk 0:00:19.5]} 38... Rd1
{[%clk 0:00:10.5]} 39. Ke2 {[%clk 0:00:19.5]} 39... Ra1 {[%clk 0:00:08.9]} 40.
Nc2 {[%clk 0:00:17.7]} 40... Ne6 {[%clk 0:00:04.9]} 41. Re4 {[%clk 0:00:17]}
41... Ng5 {[%clk 0:00:02.9]} 42. Re8+ {[%clk 0:00:16.3]} 42... Kf7 {[%clk
0:00:03.2]} 43. Rc8 {[%clk 0:00:16.3]} 43... Ra2 {[%clk 0:00:03.5]} 44. Kd3
{[%clk 0:00:13.4]} 44... g6 {[%clk 0:00:01.9]} 45. Rc7+ {[%clk 0:00:13.4]} 45...
Kf6 {[%clk 0:00:02]} 46. Rxc6+ {[%clk 0:00:13.8]} 46... Ke5 {[%clk 0:00:02.6]}
47. Rc5+ {[%clk 0:00:14.1]} 47... Kf4 {[%clk 0:00:03.1]} 48. Rxb5 {[%clk
0:00:13.9]} 48... Kxg4 {[%clk 0:00:03.7]} 49. Rc5 {[%clk 0:00:12.3]} 49... h5
{[%clk 0:00:03.2]} 50. Rxc3 {[%clk 0:00:12.2]} 50... h4 {[%clk 0:00:03.2]} 51.
Ne3+ {[%clk 0:00:11.1]} 51... Kh5 {[%clk 0:00:02.3]} 52. f4 {[%clk 0:00:10.8]}
52... Nf3 {[%clk 0:00:01.1]} 53. Ke4 {[%clk 0:00:09.5]} 53... Ne1 {[%clk
0:00:02]} 54. Rc6 {[%clk 0:00:08.8]} 54... h3 {[%clk 0:00:02.3]} 55. Nf1 {[%clk
0:00:06.6]} 55... h2 {[%clk 0:00:02.4]} 56. Nxh2 {[%clk 0:00:05.5]} 56... Rxh2
{[%clk 0:00:03.3]} 57. Ra6 {[%clk 0:00:05.4]} 57... Rb2 {[%clk 0:00:02.9]} 58.
Rxa7 {[%clk 0:00:04.6]} 58... Nc2 {[%clk 0:00:03.8]} 59. f5 {[%clk 0:00:03.1]}
59... g5 {[%clk 0:00:03.1]} 60. f6 {[%clk 0:00:03.1]} 60... Rb3 {[%clk
0:00:03.4]} 61. f7 {[%clk 0:00:02.9]} 61... Re3+ {[%clk 0:00:03.6]} 62. Kf5
{[%clk 0:00:02.6]} 62... Rf3+ {[%clk 0:00:03.9]} 63. Ke6 {[%clk 0:00:02.6]}
63... Ne3 {[%clk 0:00:01.6]} 64. Ke7 {[%clk 0:00:02]} 64... Nd5+ {[%clk
0:00:01.3]} 65. Ke8 {[%clk 0:00:02]} 65... Nb6 {[%clk 0:00:01]} 66. f8=Q {[%clk
0:00:01.1]} 66... Rxf8+ {[%clk 0:00:01.7]} 67. Kxf8 {[%clk 0:00:01.4]} 67... g4
{[%clk 0:00:02.5]} 0-1